[Event "Titled Tuesday Blitz August 17 2021"]
[White "TengisChess"]
[Black "Wilson, Elvin"]
[BlackFideId "2014874"]
[WhiteElo "2463"]
[BlackElo "2332"]
[Result "1-0"]
[Round "06"]
[TimeControl "180+1"]
[Date "2021.08.18"]
[WhiteClock "0:00:38"]
[BlackClock "0:00:09"]

1. Nf3 {[%clk 0:02:54]}  Nf6 {[%clk 0:02:58]} 2. c4 {[%clk 0:02:55]}  c5 {[%clk 0:02:57]} 3. Nc3 {[%clk 0:02:55]}  e6 {[%clk 0:02:52]} 4. g3 {[%clk 0:02:55]}  b6 {[%clk 0:02:52]} 5. Bg2 {[%clk 0:02:56]}  Bb7 {[%clk 0:02:53]} 6. O-O {[%clk 0:02:57]}  Be7 {[%clk 0:02:53]} 7. d4 {[%clk 0:02:57]}  cxd4 {[%clk 0:02:53]} 8. Qxd4 {[%clk 0:02:58]}  d6 {[%clk 0:02:52]} 9. Rd1 {[%clk 0:02:57]}  a6 {[%clk 0:02:51]} 10. b3 {[%clk 0:02:58]}  Nbd7 {[%clk 0:02:49]} 11. Bb2 {[%clk 0:02:58]}  O-O {[%clk 0:02:45]} 12. Rac1 {[%clk 0:02:57]}  Qc7 {[%clk 0:02:37]} 13. Ng5 {[%clk 0:02:50]}  Bxg2 {[%clk 0:02:31]} 14. Kxg2 {[%clk 0:02:51]}  b5 {[%clk 0:02:21]} 15. Nce4 {[%clk 0:02:45]}  b4 {[%clk 0:02:14]} 16. Nxd6 {[%clk 0:02:37]}  Nc5 {[%clk 0:01:54]} 17. Nde4 {[%clk 0:02:29]}  Qc6 {[%clk 0:01:53]} 18. f3 {[%clk 0:02:28]}  Rfd8 {[%clk 0:01:44]} 19. Qe3 {[%clk 0:02:27]}  Ncxe4 {[%clk 0:01:41]} 20. Nxe4 {[%clk 0:02:25]}  Nxe4 {[%clk 0:01:41]} 21. Qxe4 {[%clk 0:02:26]}  Qxe4 {[%clk 0:01:40]} 22. fxe4 {[%clk 0:02:27]}  Bg5 {[%clk 0:01:36]} 23. Rb1 {[%clk 0:02:25]}  Bd2 {[%clk 0:01:25]} 24. Kf3 {[%clk 0:02:16]}  f6 {[%clk 0:01:23]} 25. Bc1 {[%clk 0:02:13]}  Bc3 {[%clk 0:01:21]} 26. Be3 {[%clk 0:02:12]}  Kf7 {[%clk 0:01:17]} 27. Bb6 {[%clk 0:02:11]}  Rd2 {[%clk 0:00:45]} 28. Rxd2 {[%clk 0:02:10]}  Bxd2 {[%clk 0:00:45]} 29. Rd1 {[%clk 0:02:10]}  Rb8 {[%clk 0:00:43]} 30. c5 {[%clk 0:01:57]}  Bc3 {[%clk 0:00:38]} 31. Rd7+ {[%clk 0:01:56]}  Kg6 {[%clk 0:00:38]} 32. Bc7 {[%clk 0:01:35]}  Rc8 {[%clk 0:00:34]} 33. Bd6 {[%clk 0:01:35]}  Bd4 {[%clk 0:00:31]} 34. Ra7 {[%clk 0:01:31]}  Bxc5 {[%clk 0:00:31]} 35. Bxc5 {[%clk 0:01:31]}  Rxc5 {[%clk 0:00:31]} 36. Rxa6 {[%clk 0:01:31]}  Rc3+ {[%clk 0:00:31]} 37. Kf2 {[%clk 0:01:31]}  e5 {[%clk 0:00:31]} 38. Ra4 {[%clk 0:01:30]}  Rc2 {[%clk 0:00:31]} 39. h4 {[%clk 0:01:26]}  h5 {[%clk 0:00:31]} 40. Rxb4 {[%clk 0:01:24]}  Rxa2 {[%clk 0:00:30]} 41. Rb8 {[%clk 0:01:25]}  Rb2 {[%clk 0:00:30]} 42. b4 {[%clk 0:01:25]}  Kh6 {[%clk 0:00:30]} 43. b5 {[%clk 0:01:25]}  g5 {[%clk 0:00:31]} 44. b6 {[%clk 0:01:24]}  gxh4 {[%clk 0:00:27]} 45. gxh4 {[%clk 0:01:23]}  Rb3 {[%clk 0:00:26]} 46. b7 {[%clk 0:01:21]}  Kh7 {[%clk 0:00:26]} 47. Ke1 {[%clk 0:01:21]}  Kg7 {[%clk 0:00:25]} 48. Kd2 {[%clk 0:01:21]}  Kh7 {[%clk 0:00:23]} 49. Kc2 {[%clk 0:01:21]}  Rb6 {[%clk 0:00:22]} 50. Kc3 {[%clk 0:01:22]}  Kg7 {[%clk 0:00:20]} 51. Kc4 {[%clk 0:01:22]}  Rb1 {[%clk 0:00:19]} 52. Kd5 {[%clk 0:01:22]}  Rd1+ {[%clk 0:00:17]} 53. Ke6 {[%clk 0:01:21]}  Rb1 {[%clk 0:00:17]} 54. Kf5 {[%clk 0:01:06]}  Rb6 {[%clk 0:00:16]} 55. e3 {[%clk 0:01:00]}  Rb1 {[%clk 0:00:16]} 56. Ke6 {[%clk 0:01:00]}  Rb6+ {[%clk 0:00:16]} 57. Ke7 {[%clk 0:01:00]}  Rb1 {[%clk 0:00:15]} 58. Kd7 {[%clk 0:00:58]}  Rd1+ {[%clk 0:00:15]} 59. Ke8 {[%clk 0:00:58]}  Rb1 {[%clk 0:00:15]} 60. Kd7 {[%clk 0:00:50]}  Rb2 {[%clk 0:00:14]} 61. Ke6 {[%clk 0:00:49]}  Rb6+ {[%clk 0:00:13]} 62. Kd5 {[%clk 0:00:49]}  Rb1 {[%clk 0:00:13]} 63. Kc6 {[%clk 0:00:46]}  Rc1+ {[%clk 0:00:13]} 64. Kd6 {[%clk 0:00:46]}  Rd1+ {[%clk 0:00:13]} 65. Ke6 {[%clk 0:00:45]}  Rb1 {[%clk 0:00:14]} 66. Re8 {[%clk 0:00:44]}  Rb6+ {[%clk 0:00:13]} 67. Kf5 {[%clk 0:00:32]}  Rxb7 {[%clk 0:00:13]} 68. Rd8 {[%clk 0:00:33]}  Rb6 {[%clk 0:00:11]} 69. Rd7+ {[%clk 0:00:33]}  Kh6 {[%clk 0:00:11]} 70. Rf7 {[%clk 0:00:32]}  Rb3 {[%clk 0:00:10]} 71. Rxf6+ {[%clk 0:00:33]}  Kg7 {[%clk 0:00:10]} 72. Rg6+ {[%clk 0:00:33]}  Kf7 {[%clk 0:00:09]} 73. Rg5 {[%clk 0:00:33]}  Rxe3 {[%clk 0:00:08]} 74. Rxh5 {[%clk 0:00:34]}  Re1 {[%clk 0:00:08]} 75. Kxe5 {[%clk 0:00:34]}  Rg1 {[%clk 0:00:08]} 76. Rf5+ {[%clk 0:00:33]}  Kg6 {[%clk 0:00:08]} 77. Rg5+ {[%clk 0:00:33]}  Rxg5+ {[%clk 0:00:07]} 78. hxg5 {[%clk 0:00:34]}  Kxg5 {[%clk 0:00:07]} 79. Kd6 {[%clk 0:00:35]}  Kf6 {[%clk 0:00:08]} 80. e5+ {[%clk 0:00:35]}  Kf7 {[%clk 0:00:09]} 81. e6+ {[%clk 0:00:36]}  Ke8 {[%clk 0:00:09]} 82. e7 {[%clk 0:00:37]}  Kf7 {[%clk 0:00:09]} 83. Kd7 {[%clk 0:00:38]} 1-0


[Site "https://www.chess.com"]

[Event "Titled Tuesday Blitz August 17 2021"]
[White "Tharushi, T H D Niklesha"]
[Black "Gedajlovic, Max"]
[WhiteFideId "9918264"]
[BlackFideId "2616840"]
[WhiteElo "1595"]
[BlackElo "2137"]
[Result "0-1"]
[Round "06"]
[TimeControl "180+1"]
[Date "2021.08.17"]
[WhiteClock "0:00:18"]
[BlackClock "0:00:15"]

1. e4 {[%clk 0:03:00]}  e6 {[%clk 0:02:54]} 2. d4 {[%clk 0:02:54]}  d5 {[%clk 0:02:54]} 3. e5 {[%clk 0:02:50]}  c5 {[%clk 0:02:54]} 4. Nf3 {[%clk 0:02:46]}  Nc6 {[%clk 0:02:54]} 5. Bb5 {[%clk 0:02:40]}  Bd7 {[%clk 0:02:53]} 6. Bxc6 {[%clk 0:02:36]}  bxc6 {[%clk 0:02:53]} 7. O-O {[%clk 0:02:31]}  cxd4 {[%clk 0:02:53]} 8. Qxd4 {[%clk 0:02:26]}  c5 {[%clk 0:02:52]} 9. Qd3 {[%clk 0:02:22]}  Ne7 {[%clk 0:02:49]} 10. c4 {[%clk 0:02:17]}  Bc6 {[%clk 0:02:40]} 11. cxd5 {[%clk 0:02:12]}  exd5 {[%clk 0:02:40]} 12. Re1 {[%clk 0:02:07]}  d4 {[%clk 0:02:17]} 13. Na3 {[%clk 0:02:01]}  Bxf3 {[%clk 0:02:06]} 14. Qxf3 {[%clk 0:01:56]}  Qd5 {[%clk 0:02:05]} 15. Qd3 {[%clk 0:01:45]}  Nc6 {[%clk 0:01:56]} 16. b3 {[%clk 0:01:39]}  Be7 {[%clk 0:01:52]} 17. Qg3 {[%clk 0:01:34]}  g6 {[%clk 0:01:31]} 18. Nb5 {[%clk 0:01:24]}  Rc8 {[%clk 0:01:09]} 19. Bh6 {[%clk 0:01:16]}  Kd7 {[%clk 0:01:03]} 20. e6+ {[%clk 0:01:17]}  fxe6 {[%clk 0:01:02]} 21. Rac1 {[%clk 0:01:02]}  Nb4 {[%clk 0:00:46]} 22. Re5 {[%clk 0:00:55]}  Qb7 {[%clk 0:00:46]} 23. Qh3 {[%clk 0:00:50]}  Rc6 {[%clk 0:00:43]} 24. Rce1 {[%clk 0:00:45]}  Qa6 {[%clk 0:00:42]} 25. Bf4 {[%clk 0:00:38]}  Rf8 {[%clk 0:00:34]} 26. Rxe6 {[%clk 0:00:32]}  Rxe6 {[%clk 0:00:32]} 27. Nc7 {[%clk 0:00:24]}  Rf5 {[%clk 0:00:21]} 28. Nxe6 {[%clk 0:00:18]}  Qxe6 {[%clk 0:00:20]} 29. Rxe6 {[%clk 0:00:17]}  Kxe6 {[%clk 0:00:21]} 30. Bg3 {[%clk 0:00:17]}  h5 {[%clk 0:00:20]} 31. Bb8 {[%clk 0:00:17]}  Nd5 {[%clk 0:00:20]} 32. g4 {[%clk 0:00:18]}  hxg4 {[%clk 0:00:20]} 33. Qxg4 {[%clk 0:00:18]}  Kf7 {[%clk 0:00:20]} 34. h4 {[%clk 0:00:18]}  Nc3 {[%clk 0:00:19]} 35. Kg2 {[%clk 0:00:18]}  a6 {[%clk 0:00:14]} 36. Ba7 {[%clk 0:00:18]}  Nd5 {[%clk 0:00:14]} 37. Qe4 {[%clk 0:00:18]}  Nf4+ {[%clk 0:00:13]} 38. Kg3 {[%clk 0:00:18]}  Ne6 {[%clk 0:00:14]} 39. f4 {[%clk 0:00:16]}  Rxf4 {[%clk 0:00:13]} 40. Qxf4+ {[%clk 0:00:15]}  Nxf4 {[%clk 0:00:13]} 41. Kxf4 {[%clk 0:00:16]}  Ke6 {[%clk 0:00:13]} 42. Ke4 {[%clk 0:00:16]}  Kd6 {[%clk 0:00:12]} 43. Bb8+ {[%clk 0:00:15]}  Kc6 {[%clk 0:00:13]} 44. Bg3 {[%clk 0:00:16]}  Kb5 {[%clk 0:00:11]} 45. Kd3 {[%clk 0:00:17]}  Kc6 {[%clk 0:00:10]} 46. a4 {[%clk 0:00:17]}  Kd5 {[%clk 0:00:10]} 47. a5 {[%clk 0:00:16]}  Bd8 {[%clk 0:00:11]} 48. Be1 {[%clk 0:00:17]}  Bc7 {[%clk 0:00:11]} 49. Bd2 {[%clk 0:00:17]}  Bg3 {[%clk 0:00:11]} 50. Bg5 {[%clk 0:00:17]}  Be1 {[%clk 0:00:11]} 51. Bd8 {[%clk 0:00:16]}  Ke5 {[%clk 0:00:11]} 52. Kc4 {[%clk 0:00:14]}  Ke4 {[%clk 0:00:11]} 53. Bg5 {[%clk 0:00:13]}  d3 {[%clk 0:00:11]} 54. Kxc5 {[%clk 0:00:12]}  Bxa5 {[%clk 0:00:11]} 55. b4 {[%clk 0:00:11]}  Bd8 {[%clk 0:00:10]} 56. Bxd8 {[%clk 0:00:10]}  d2 {[%clk 0:00:10]} 57. h5 {[%clk 0:00:11]}  d1=Q {[%clk 0:00:10]} 58. Kb6 {[%clk 0:00:11]}  Qxd8+ {[%clk 0:00:10]} 59. Kxa6 {[%clk 0:00:12]}  gxh5 {[%clk 0:00:11]} 60. b5 {[%clk 0:00:13]}  Qb8 {[%clk 0:00:12]} 61. b6 {[%clk 0:00:14]}  h4 {[%clk 0:00:12]} 62. b7 {[%clk 0:00:14]}  h3 {[%clk 0:00:13]} 63. Kb6 {[%clk 0:00:15]}  h2 {[%clk 0:00:13]} 64. Ka6 {[%clk 0:00:16]}  h1=Q {[%clk 0:00:13]} 65. Kb6 {[%clk 0:00:17]}  Qb1+ {[%clk 0:00:14]} 66. Ka6 {[%clk 0:00:18]}  Q1xb7+ {[%clk 0:00:14]} 67. Ka5 {[%clk 0:00:18]}  Q8a7# {[%clk 0:00:15]} 0-1


[Site "https://www.chess.com"]

[Event "Titled Tuesday Blitz August 17 2021"]
[White "Tristan, Leonardo"]
[Black "Zhigalko, Sergei"]
[WhiteFideId "113816"]
[BlackFideId "13502956"]
[WhiteElo "2404"]
[BlackElo "2662"]
[Result "0-1"]
[Round "06"]
[TimeControl "180+1"]
[Date "2021.08.17"]
[WhiteClock "0:00:02"]
[BlackClock "0:00:06"]

1. d4 {[%clk 0:03:00]}  Nf6 {[%clk 0:03:00]} 2. Nf3 {[%clk 0:03:00]}  e6 {[%clk 0:03:00]} 3. Bf4 {[%clk 0:03:00]}  d5 {[%clk 0:02:58]} 4. e3 {[%clk 0:03:01]}  Bd6 {[%clk 0:02:59]} 5. Bg3 {[%clk 0:03:01]}  O-O {[%clk 0:02:59]} 6. c4 {[%clk 0:03:02]}  b6 {[%clk 0:02:55]} 7. cxd5 {[%clk 0:03:01]}  exd5 {[%clk 0:02:53]} 8. Nc3 {[%clk 0:03:02]}  Bb7 {[%clk 0:02:52]} 9. Qc2 {[%clk 0:03:02]}  c5 {[%clk 0:02:46]} 10. Rd1 {[%clk 0:03:01]}  c4 {[%clk 0:02:32]} 11. Be2 {[%clk 0:02:40]}  a6 {[%clk 0:02:31]} 12. O-O {[%clk 0:01:59]}  b5 {[%clk 0:02:30]} 13. a3 {[%clk 0:01:59]}  Bxg3 {[%clk 0:02:20]} 14. hxg3 {[%clk 0:01:59]}  Nc6 {[%clk 0:02:21]} 15. Ne5 {[%clk 0:01:59]}  Qd6 {[%clk 0:01:51]} 16. f4 {[%clk 0:01:40]}  b4 {[%clk 0:01:37]} 17. axb4 {[%clk 0:01:38]}  Nxb4 {[%clk 0:01:38]} 18. Qf5 {[%clk 0:01:36]}  Bc8 {[%clk 0:01:31]} 19. Qg5 {[%clk 0:01:36]}  Rb8 {[%clk 0:01:27]} 20. f5 {[%clk 0:01:19]}  Re8 {[%clk 0:00:56]} 21. Bh5 {[%clk 0:01:06]}  Rb7 {[%clk 0:00:42]} 22. Bf3 {[%clk 0:00:52]}  Nc6 {[%clk 0:00:34]} 23. Nxc6 {[%clk 0:00:40]}  Qxc6 {[%clk 0:00:35]} 24. e4 {[%clk 0:00:20]}  dxe4 {[%clk 0:00:33]} 25. Nxe4 {[%clk 0:00:16]}  Nxe4 {[%clk 0:00:26]} 26. Bxe4 {[%clk 0:00:06]}  Qxe4 {[%clk 0:00:27]} 27. Rde1 {[%clk 0:00:05]}  Qxd4+ {[%clk 0:00:27]} 28. Kh1 {[%clk 0:00:05]}  Rxe1 {[%clk 0:00:10]} 29. Rxe1 {[%clk 0:00:06]}  h6 {[%clk 0:00:10]} 30. Qh5 {[%clk 0:00:04]}  Qd8 {[%clk 0:00:07]} 31. g4 {[%clk 0:00:03]}  Re7 {[%clk 0:00:06]} 32. Rf1 {[%clk 0:00:03]}  Bb7 {[%clk 0:00:06]} 33. f6 {[%clk 0:00:04]}  Re2 {[%clk 0:00:06]} 34. Rg1 {[%clk 0:00:01]}  Qxf6 {[%clk 0:00:06]} 35. Qc5 {[%clk 0:00:02]}  Qh4# {[%clk 0:00:06]} 0-1


[Site "https://www.chess.com"]

[Event "Titled Tuesday Blitz August 17 2021"]
[White "Turner, Max N"]
[Black "Esenbek Uulu, Ilimbek"]
[WhiteFideId "447722"]
[BlackFideId "13800680"]
[WhiteElo "2078"]
[BlackElo "2103"]
[Result "1-0"]
[Round "06"]
[TimeControl "180+1"]
[Date "2021.08.18"]
[WhiteClock "0:00:07"]
[BlackClock "0:00:02"]

1. d4 {[%clk 0:03:00]}  d5 {[%clk 0:02:30]} 2. c4 {[%clk 0:03:00]}  e6 {[%clk 0:02:27]} 3. Nf3 {[%clk 0:02:58]}  Nf6 {[%clk 0:02:26]} 4. Nc3 {[%clk 0:02:58]}  Nbd7 {[%clk 0:02:26]} 5. cxd5 {[%clk 0:02:56]}  exd5 {[%clk 0:02:23]} 6. Bg5 {[%clk 0:02:57]}  c6 {[%clk 0:02:23]} 7. e3 {[%clk 0:02:57]}  Be7 {[%clk 0:02:21]} 8. Bd3 {[%clk 0:02:57]}  O-O {[%clk 0:02:22]} 9. O-O {[%clk 0:02:58]}  Re8 {[%clk 0:02:21]} 10. Rb1 {[%clk 0:02:58]}  Nf8 {[%clk 0:02:22]} 11. b4 {[%clk 0:02:58]}  a6 {[%clk 0:02:22]} 12. Qc2 {[%clk 0:02:52]}  Ne4 {[%clk 0:02:22]} 13. Bxe7 {[%clk 0:02:43]}  Qxe7 {[%clk 0:02:22]} 14. Bxe4 {[%clk 0:02:42]}  dxe4 {[%clk 0:02:23]} 15. Nd2 {[%clk 0:02:43]}  Bf5 {[%clk 0:02:20]} 16. a4 {[%clk 0:02:36]}  Ng6 {[%clk 0:02:19]} 17. Ne2 {[%clk 0:01:54]}  Nh4 {[%clk 0:02:15]} 18. Ng3 {[%clk 0:01:50]}  Bg6 {[%clk 0:02:15]} 19. Qc5 {[%clk 0:01:42]}  Qe6 {[%clk 0:02:06]} 20. Qg5 {[%clk 0:01:20]}  Nf5 {[%clk 0:01:53]} 21. Nxf5 {[%clk 0:01:17]}  Bxf5 {[%clk 0:01:52]} 22. Rfc1 {[%clk 0:01:14]}  h6 {[%clk 0:01:46]} 23. Qf4 {[%clk 0:01:10]}  g5 {[%clk 0:01:44]} 24. Qc7 {[%clk 0:01:06]}  Re7 {[%clk 0:01:43]} 25. Qg3 {[%clk 0:00:55]}  f6 {[%clk 0:01:32]} 26. Nb3 {[%clk 0:00:45]}  h5 {[%clk 0:01:21]} 27. Nc5 {[%clk 0:00:24]}  Qd5 {[%clk 0:01:20]} 28. h4 {[%clk 0:00:13]}  Rg7 {[%clk 0:01:19]} 29. hxg5 {[%clk 0:00:12]}  Rxg5 {[%clk 0:01:16]} 30. Qc7 {[%clk 0:00:12]}  Rg7 {[%clk 0:01:13]} 31. Qf4 {[%clk 0:00:10]}  Bh3 {[%clk 0:01:03]} 32. g3 {[%clk 0:00:08]}  Rf8 {[%clk 0:00:57]} 33. Kh2 {[%clk 0:00:07]}  Bc8 {[%clk 0:00:56]} 34. b5 {[%clk 0:00:07]}  axb5 {[%clk 0:00:55]} 35. axb5 {[%clk 0:00:07]}  b6 {[%clk 0:00:51]} 36. Nxe4 {[%clk 0:00:05]}  Qf5 {[%clk 0:00:46]} 37. Qxf5 {[%clk 0:00:02]}  Bxf5 {[%clk 0:00:46]} 38. f3 {[%clk 0:00:03]}  cxb5 {[%clk 0:00:42]} 39. Rxb5 {[%clk 0:00:03]}  Bxe4 {[%clk 0:00:42]} 40. fxe4 {[%clk 0:00:03]}  Re7 {[%clk 0:00:36]} 41. e5 {[%clk 0:00:03]}  fxe5 {[%clk 0:00:35]} 42. dxe5 {[%clk 0:00:03]}  Rfe8 {[%clk 0:00:35]} 43. Rxb6 {[%clk 0:00:04]}  Rxe5 {[%clk 0:00:35]} 44. Rg6+ {[%clk 0:00:04]}  Kh7 {[%clk 0:00:34]} 45. Rf6 {[%clk 0:00:04]}  Rxe3 {[%clk 0:00:34]} 46. Rc7+ {[%clk 0:00:05]}  R8e7 {[%clk 0:00:34]} 47. Rc5 {[%clk 0:00:04]}  R3e5 {[%clk 0:00:33]} 48. Rcc6 {[%clk 0:00:04]}  Rg5 {[%clk 0:00:31]} 49. Rh6+ {[%clk 0:00:03]}  Kg7 {[%clk 0:00:32]} 50. Rhd6 {[%clk 0:00:03]}  Re2+ {[%clk 0:00:28]} 51. Kh3 {[%clk 0:00:03]}  Re7 {[%clk 0:00:28]} 52. Ra6 {[%clk 0:00:02]}  Rf5 {[%clk 0:00:27]} 53. Rdb6 {[%clk 0:00:02]}  Rd5 {[%clk 0:00:27]} 54. Kh4 {[%clk 0:00:03]}  Re4+ {[%clk 0:00:22]} 55. Kh3 {[%clk 0:00:03]}  Re7 {[%clk 0:00:18]} 56. Rg6+ {[%clk 0:00:04]}  Kf7 {[%clk 0:00:16]} 57. Rh6 {[%clk 0:00:05]}  Rg5 {[%clk 0:00:15]} 58. Raf6+ {[%clk 0:00:05]}  Ke8 {[%clk 0:00:14]} 59. Rh8+ {[%clk 0:00:06]}  Kd7 {[%clk 0:00:15]} 60. Rf3 {[%clk 0:00:05]}  Reg7 {[%clk 0:00:14]} 61. Ra8 {[%clk 0:00:05]}  Ke6 {[%clk 0:00:10]} 62. Ra6+ {[%clk 0:00:05]}  Ke5 {[%clk 0:00:10]} 63. Ra5+ {[%clk 0:00:05]}  Ke4 {[%clk 0:00:10]} 64. Rf4+ {[%clk 0:00:05]}  Ke3 {[%clk 0:00:10]} 65. Rxg5 {[%clk 0:00:05]}  Rxg5 {[%clk 0:00:10]} 66. Kh4 {[%clk 0:00:06]}  Re5 {[%clk 0:00:10]} 67. Rf8 {[%clk 0:00:05]}  Ke4 {[%clk 0:00:08]} 68. Rg8 {[%clk 0:00:04]}  Kf3 {[%clk 0:00:07]} 69. Rh8 {[%clk 0:00:04]}  Re4+ {[%clk 0:00:06]} 70. Kh3 {[%clk 0:00:05]}  Rg4 {[%clk 0:00:04]} 71. Rf8+ {[%clk 0:00:05]}  Ke3 {[%clk 0:00:04]} 72. Rf5 {[%clk 0:00:06]}  Rg6 {[%clk 0:00:01]} 73. Rxh5 {[%clk 0:00:04]}  Ke4 {[%clk 0:00:02]} 74. g4 {[%clk 0:00:02]}  Kf4 {[%clk 0:00:02]} 75. Rf5+ {[%clk 0:00:03]}  Ke4 {[%clk 0:00:03]} 76. Rf1 {[%clk 0:00:03]}  Ke5 {[%clk 0:00:02]} 77. Kh4 {[%clk 0:00:04]}  Rh6+ {[%clk 0:00:03]} 78. Kg5 {[%clk 0:00:04]}  Rh3 {[%clk 0:00:03]} 79. Re1+ {[%clk 0:00:04]}  Kd6 {[%clk 0:00:03]} 80. Kg6 {[%clk 0:00:04]}  Rg3 {[%clk 0:00:02]} 81. g5 {[%clk 0:00:05]}  Kd7 {[%clk 0:00:02]} 82. Kf6 {[%clk 0:00:05]}  Rf3+ {[%clk 0:00:02]} 83. Kg7 {[%clk 0:00:06]}  Rg3 {[%clk 0:00:02]} 84. g6 {[%clk 0:00:06]}  Rg4 {[%clk 0:00:02]} 85. Kf7 {[%clk 0:00:06]}  Rf4+ {[%clk 0:00:02]} 86. Kg8 {[%clk 0:00:07]}  Rg4 {[%clk 0:00:02]} 87. g7 {[%clk 0:00:08]}  Rg3 {[%clk 0:00:02]} 88. Re4 {[%clk 0:00:07]} 1-0


[Site "https://www.chess.com"]

[Event "Titled Tuesday Blitz August 17 2021"]
[White "Urazayev, Arystanbek"]
[Black "Yoo, Christopher Woojin"]
[WhiteFideId "13709810"]
[BlackFideId "30909694"]
[WhiteElo "2321"]
[BlackElo "2105"]
[Result "0-1"]
[Round "06"]
[TimeControl "180+1"]
[Date "2021.08.17"]
[WhiteClock "0:00:12"]
[BlackClock "0:00:37"]

1. d4 {[%clk 0:03:00]}  Nf6 {[%clk 0:02:55]} 2. c4 {[%clk 0:03:01]}  e6 {[%clk 0:02:55]} 3. Nc3 {[%clk 0:03:01]}  d5 {[%clk 0:02:53]} 4. Nf3 {[%clk 0:03:02]}  h6 {[%clk 0:02:53]} 5. g3 {[%clk 0:03:02]}  Nc6 {[%clk 0:02:52]} 6. Bg2 {[%clk 0:03:01]}  Bd6 {[%clk 0:02:53]} 7. O-O {[%clk 0:03:01]}  O-O {[%clk 0:02:53]} 8. b3 {[%clk 0:03:01]}  Re8 {[%clk 0:02:51]} 9. Bb2 {[%clk 0:03:01]}  dxc4 {[%clk 0:02:51]} 10. bxc4 {[%clk 0:03:02]}  e5 {[%clk 0:02:51]} 11. d5 {[%clk 0:02:45]}  Na5 {[%clk 0:02:46]} 12. Nd2 {[%clk 0:02:44]}  Bd7 {[%clk 0:02:28]} 13. e4 {[%clk 0:02:32]}  c6 {[%clk 0:02:23]} 14. Qe2 {[%clk 0:02:32]}  Rc8 {[%clk 0:02:21]} 15. Rac1 {[%clk 0:02:25]}  Qb6 {[%clk 0:02:12]} 16. Ba1 {[%clk 0:02:00]}  Qa6 {[%clk 0:02:06]} 17. Qd1 {[%clk 0:01:48]}  cxd5 {[%clk 0:02:00]} 18. Nxd5 {[%clk 0:01:41]}  Nxd5 {[%clk 0:01:55]} 19. cxd5 {[%clk 0:01:38]}  Rxc1 {[%clk 0:01:36]} 20. Qxc1 {[%clk 0:01:39]}  Rc8 {[%clk 0:01:36]} 21. Qb1 {[%clk 0:01:40]}  Qe2 {[%clk 0:01:27]} 22. Nb3 {[%clk 0:01:34]}  Nxb3 {[%clk 0:01:12]} 23. Qxb3 {[%clk 0:01:33]}  b6 {[%clk 0:00:59]} 24. Bf3 {[%clk 0:01:25]}  Qc2 {[%clk 0:00:53]} 25. Bd1 {[%clk 0:01:19]}  Qd2 {[%clk 0:00:49]} 26. Qb2 {[%clk 0:01:13]}  Qd3 {[%clk 0:00:46]} 27. Be2 {[%clk 0:01:08]}  Qxe4 {[%clk 0:00:44]} 28. Ba6 {[%clk 0:00:30]}  Bh3 {[%clk 0:00:39]} 29. f3 {[%clk 0:00:27]}  Qe3+ {[%clk 0:00:38]} 30. Rf2 {[%clk 0:00:12]}  Rc1+ {[%clk 0:00:37]} 31. Bf1 {[%clk 0:00:12]}  Rxf1# {[%clk 0:00:37]} 0-1


[Site "https://www.chess.com"]

[Event "Titled Tuesday Blitz August 17 2021"]
[White "Vasli, Aref"]
[Black "Kvon, Andrey"]
[WhiteFideId "417521"]
[BlackFideId "14201356"]
[WhiteElo "2257"]
[BlackElo "2458"]
[Result "1-0"]
[Round "06"]
[TimeControl "180+1"]
[Date "2021.08.17"]
[WhiteClock "0:00:29"]
[BlackClock "0:01:42"]

1. e4 {[%clk 0:02:58]}  e5 {[%clk 0:02:59]} 2. Nf3 {[%clk 0:02:56]}  Nc6 {[%clk 0:02:59]} 3. Bb5 {[%clk 0:02:56]}  a6 {[%clk 0:02:56]} 4. Ba4 {[%clk 0:02:56]}  Nf6 {[%clk 0:02:56]} 5. O-O {[%clk 0:02:55]}  b5 {[%clk 0:02:56]} 6. Bb3 {[%clk 0:02:55]}  Bc5 {[%clk 0:02:57]} 7. c3 {[%clk 0:02:53]}  d6 {[%clk 0:02:56]} 8. d4 {[%clk 0:02:54]}  Bb6 {[%clk 0:02:57]} 9. h3 {[%clk 0:02:53]}  Bb7 {[%clk 0:02:55]} 10. Be3 {[%clk 0:02:52]}  O-O {[%clk 0:02:54]} 11. Nbd2 {[%clk 0:02:39]}  h6 {[%clk 0:02:50]} 12. dxe5 {[%clk 0:02:31]}  dxe5 {[%clk 0:02:48]} 13. Bxb6 {[%clk 0:02:29]}  cxb6 {[%clk 0:02:49]} 14. Qe2 {[%clk 0:02:26]}  Qc7 {[%clk 0:02:45]} 15. Nh4 {[%clk 0:02:19]}  Ne7 {[%clk 0:02:39]} 16. Rfe1 {[%clk 0:02:09]}  g5 {[%clk 0:02:35]} 17. Qf3 {[%clk 0:01:56]}  Kg7 {[%clk 0:02:28]} 18. Nf5+ {[%clk 0:01:54]}  Nxf5 {[%clk 0:02:28]} 19. Qxf5 {[%clk 0:01:54]}  Bc8 {[%clk 0:02:26]} 20. Qf3 {[%clk 0:01:52]}  Be6 {[%clk 0:02:20]} 21. Nf1 {[%clk 0:01:50]}  Nd7 {[%clk 0:02:12]} 22. Ng3 {[%clk 0:01:47]}  Rad8 {[%clk 0:02:02]} 23. Rad1 {[%clk 0:01:40]}  Qc5 {[%clk 0:01:59]} 24. Nh5+ {[%clk 0:01:21]}  Kg6 {[%clk 0:01:58]} 25. Rxd7 {[%clk 0:00:54]}  Rxd7 {[%clk 0:01:58]} 26. Qf6+ {[%clk 0:00:48]}  Kxh5 {[%clk 0:01:58]} 27. Bxe6 {[%clk 0:00:30]}  fxe6 {[%clk 0:01:42]} 28. g4+ {[%clk 0:00:29]}  Kh4 {[%clk 0:01:42]} 29. Qxh6# {[%clk 0:00:29]} 1-0


[Site "https://www.chess.com"]

[Event "Titled Tuesday Blitz August 17 2021"]
[White "Weetik, Vjacheslav"]
[Black "Ronka, Erik"]
[WhiteFideId "4153472"]
[BlackFideId "505080"]
[WhiteElo "2469"]
[BlackElo "2264"]
[Result "1-0"]
[Round "06"]
[TimeControl "180+1"]
[Date "2021.08.17"]
[WhiteClock "0:01:36"]
[BlackClock "0:00:45"]

1. d4 {[%clk 0:02:55]}  d5 {[%clk 0:02:59]} 2. Bf4 {[%clk 0:02:55]}  c5 {[%clk 0:02:59]} 3. e3 {[%clk 0:02:55]}  cxd4 {[%clk 0:03:00]} 4. exd4 {[%clk 0:02:55]}  Nc6 {[%clk 0:03:01]} 5. c3 {[%clk 0:02:56]}  f6 {[%clk 0:03:01]} 6. Nf3 {[%clk 0:02:55]}  g5 {[%clk 0:03:01]} 7. Be3 {[%clk 0:02:51]}  g4 {[%clk 0:02:53]} 8. Nh4 {[%clk 0:02:47]}  Qb6 {[%clk 0:02:17]} 9. Na3 {[%clk 0:02:35]}  e5 {[%clk 0:02:07]} 10. dxe5 {[%clk 0:02:30]}  Qxb2 {[%clk 0:02:03]} 11. Nb5 {[%clk 0:02:30]}  Rb8 {[%clk 0:01:26]} 12. Nc7+ {[%clk 0:01:58]}  Kf7 {[%clk 0:01:26]} 13. Qxd5+ {[%clk 0:01:51]}  Be6 {[%clk 0:00:46]} 14. Qxe6+ {[%clk 0:01:47]}  Kg7 {[%clk 0:00:47]} 15. Qxg4+ {[%clk 0:01:41]}  Kf7 {[%clk 0:00:45]} 16. Bc4+ {[%clk 0:01:36]} 1-0


[Site "https://www.chess.com"]